bitfinex/quotes_BTCUSD_20250813
["timestamp","ask_amount","ask_price","bid_price","bid_amount"]
[1755111323059,0.00600901,121370.0,121360.0,2.01253377]
[1755111323256,0.00600901,121370.0,121360.0,2.13989377]
[1755111323639,0.00600901,121370.0,121360.0,2.01253377]
[1755111323851,0.00600901,121370.0,121360.0,2.13989377]
[1755111325030,0.00600901,121370.0,121360.0,2.13985377]
[1755111326992,0.00104901,121370.0,121360.0,2.01253377]
[1755111327202,0.00104901,121370.0,121360.0,2.59462935]
[1755111327675,0.00104901,121370.0,121360.0,2.60178689]
[1755111328270,0.00104901,121370.0,121360.0,2.47446689]
[1755111328474,0.00104901,121370.0,121360.0,2.60178689]
[1755111331581,0.00104901,121370.0,121360.0,3.00418689]
[1755111331929,0.00104901,121370.0,121360.0,2.90162689]
[1755111332146,0.00104901,121370.0,121360.0,2.79906689]
[1755111332828,0.00104901,121370.0,121360.0,2.59462935]
[1755111333367,0.00104901,121370.0,121360.0,2.46730935]
[1755111333580,0.00104901,121370.0,121360.0,2.59462935]
[1755111336176,0.00104901,121370.0,121360.0,2.46730935]
[1755111336375,0.00104901,121370.0,121360.0,2.59462935]
[1755111336686,0.00104901,121370.0,121360.0,2.60185322]
[1755111336922,0.00104901,121370.0,121360.0,2.59462935]
[1755111337416,0.00104901,121370.0,121360.0,2.46730935]
[1755111337557,0.00104901,121370.0,121360.0,2.59462935]
[1755111338409,0.00612901,121370.0,121360.0,2.59462935]
[1755111338629,0.00612901,121370.0,121360.0,2.01253377]
[1755111338907,0.00612901,121370.0,121360.0,2.13985377]
[1755111341507,0.00612901,121370.0,121360.0,2.54225377]
[1755111343445,0.00612901,121370.0,121360.0,2.43969377]
[1755111345493,0.00612901,121370.0,121360.0,2.33713377]
[1755111345693,0.00612901,121370.0,121360.0,2.20981377]
[1755111345886,0.00612901,121370.0,121360.0,2.13985377]
[1755111346977,0.00612901,121370.0,121360.0,1.25641719]
[1755111347192,0.00612901,121370.0,121360.0,1.48106375]
[1755111347420,0.00612901,121370.0,121360.0,1.35374375]
[1755111347609,0.00612901,121370.0,121360.0,1.48106375]
[1755111347848,0.00512901,121370.0,121360.0,1.83751277]
[1755111348034,0.05597901,121370.0,121360.0,1.48106375]
[1755111348181,0.05597901,121370.0,121360.0,1.49851277]
[1755111348384,0.05597901,121370.0,121360.0,1.83851277]
[1755111348587,0.05597901,121370.0,121360.0,1.83551277]
[1755111349220,0.05597901,121370.0,121360.0,0.92596161]
[1755111349430,0.05597901,121370.0,121360.0,1.83551277]
[1755111349630,0.05597901,121370.0,121360.0,1.83651277]
[1755111349898,0.05397901,121370.0,121360.0,1.83551277]
[1755111350142,0.05597901,121370.0,121360.0,1.83551277]
[1755111350385,0.05697901,121370.0,121360.0,1.83551277]
[1755111351620,0.05697901,121370.0,121360.0,2.23799277]
[1755111353153,0.05697901,121370.0,121360.0,1.90547277]
[1755111353312,0.05697901,121370.0,121360.0,0.92596161]
[1755111353532,0.05697901,121370.0,121360.0,1.35615785]
[1755111353897,0.05697901,121370.0,121360.0,1.2734346]
[1755111354479,0.05697901,121370.0,121360.0,1.1461146]
[1755111354810,0.05697901,121370.0,121360.0,1.2734346]
[1755111355158,0.05697901,121370.0,121360.0,0.81865902]
[1755111355597,0.05697901,121370.0,121360.0,1.2734346]
[1755111357645,0.05697901,121370.0,121360.0,1.2734746]
[1755111357852,0.00812901,121370.0,121360.0,1.72825018]
[1755111359431,0.00812901,121370.0,121360.0,1.54061277]
[1755111361674,0.00812901,121370.0,121360.0,1.94313277]
[1755111363115,0.00812901,121370.0,121360.0,1.84053277]
[1755111363327,0.00812901,121370.0,121360.0,1.73793277]
[1755111365184,0.00812901,121370.0,121360.0,1.08583719]
[1755111366034,0.00812901,121370.0,121360.0,0.95847719]
[1755111366241,0.00812901,121370.0,121360.0,0.63106161]
[1755111366456,0.00812901,121370.0,121360.0,0.95847719]
[1755111366649,0.00812901,121370.0,121360.0,1.08583719]
[1755111366872,0.00812901,121370.0,121360.0,0.63106161]
[1755111367073,0.00812901,121370.0,121360.0,1.08583719]
[1755111367279,0.00812901,121370.0,121360.0,0.95847719]
[1755111367488,0.00812901,121370.0,121360.0,1.08583719]
[1755111368355,0.00812901,121370.0,121360.0,0.95847719]
[1755111368580,0.00812901,121370.0,121360.0,1.08583719]
[1755111369332,0.00812901,121370.0,121360.0,0.63106161]
[1755111369537,0.00812901,121370.0,121360.0,1.08583719]
[1755111371543,0.00812901,121370.0,121360.0,1.38575719]
[1755111371900,0.00812901,121370.0,121360.0,0.93098161]
[1755111372104,0.00812901,121370.0,121360.0,1.39575719]
[1755111372452,0.00812901,121370.0,121360.0,1.24389917]
[1755111372614,0.00812901,121370.0,121360.0,1.13045558]
[1755111372847,0.00812901,121370.0,121360.0,0.95781858]
[1755111373241,0.00812901,121370.0,121360.0,1.28523416]
[1755111373769,0.00812901,121370.0,121360.0,1.41259416]
[1755111374811,0.00812901,121370.0,121360.0,1.22623157]
[1755111375066,0.00812901,121370.0,121360.0,1.07259416]
[1755111375240,0.003,121380.0,121370.0,0.45664657]
[1755111375445,0.003,121380.0,121370.0,0.58400657]
[1755111375627,0.00512,121380.0,121370.0,0.58400657]
[1755111375843,0.00512,121380.0,121370.0,0.58396657]
[1755111376213,0.00512,121380.0,121370.0,0.46477558]
[1755111376347,0.00512,121380.0,121370.0,0.59866974]
[1755111376621,0.004,121380.0,121370.0,0.59966974]
[1755111376835,0.008,121380.0,121370.0,0.59966974]
[1755111377261,0.008,121380.0,121370.0,0.83703174]
[1755111377459,0.008,121380.0,121370.0,0.96730174]
[1755111377653,0.008,121380.0,121370.0,0.83998174]
[1755111377855,0.008,121380.0,121370.0,0.96272758]
[1755111378649,0.008,121380.0,121370.0,0.95977758]
[1755111379363,0.008,121380.0,121370.0,0.96272758]
[1755111380240,0.008,121380.0,121370.0,0.95977758]
[1755111380889,0.008,121380.0,121370.0,0.96272758]
[1755111381505,0.008,121380.0,121370.0,1.36528758]
[1755111383119,0.008,121380.0,121370.0,1.36233758]
[1755111383335,0.0132,121380.0,121370.0,0.573042]
[1755111383541,0.0132,121380.0,121370.0,1.15513758]
[1755111384417,0.0132,121380.0,121370.0,0.95777758]
[1755111386790,0.0132,121380.0,121370.0,0.503002]
[1755111387145,0.0381082,121400.0,121380.0,0.45477558]
[1755111387346,0.0381082,121400.0,121370.0,0.038632]
[1755111387347,0.00212,121380.0,121370.0,0.038632]
[1755111387669,4.903e-05,121400.0,121370.0,0.14935896]
[1755111387863,4.903e-05,121400.0,121380.0,0.12732]
[1755111388077,0.00212,121390.0,121380.0,0.00495]
[1755111388294,0.00212,121390.0,121380.0,0.13227]
[1755111388590,0.00204903,121400.0,121380.0,0.58704558]
[1755111388935,0.00404903,121400.0,121390.0,0.45477558]
[1755111389202,0.00216903,121400.0,121390.0,0.58704558]
[1755111389381,4.903e-05,121400.0,121390.0,0.59131318]
[1755111389586,4.903e-05,121400.0,121390.0,1.14199343]
[1755111389809,4.903e-05,121400.0,121390.0,0.70881247]
[1755111390009,0.00204903,121400.0,121390.0,0.70881247]
[1755111390724,4.903e-05,121400.0,121390.0,1.03136345]
[1755111390898,0.00204903,121400.0,121390.0,1.03136345]
[1755111391436,0.00204903,121400.0,121390.0,1.13396345]
[1755111391637,0.00420903,121400.0,121390.0,1.32633345]
[1755111392197,0.00720903,121400.0,121390.0,1.32733345]
[1755111392372,0.00720903,121400.0,121390.0,1.32949345]
[1755111392571,0.00720903,121400.0,121390.0,1.33249345]
[1755111392723,0.00504903,121400.0,121390.0,1.33249345]
[1755111394013,0.00504903,121400.0,121390.0,1.36618903]
[1755111394486,0.00504903,121400.0,121390.0,1.49350903]
[1755111396004,0.00504903,121400.0,121390.0,1.03873345]
[1755111396205,0.00504903,121400.0,121390.0,1.49350903]
[1755111396415,0.00504903,121400.0,121390.0,1.03873345]
[1755111396732,0.00504903,121400.0,121390.0,1.01713883]
[1755111397222,0.00504903,121400.0,121390.0,1.03458785]
[1755111397434,0.00504903,121400.0,121390.0,1.51188047]
[1755111398191,0.00304903,121400.0,121390.0,1.50771017]
[1755111398396,0.00304903,121400.0,121390.0,0.82548232]
[1755111398566,0.00404903,121400.0,121390.0,0.95276232]
[1755111398766,0.00104903,121400.0,121390.0,1.2792579]
[1755111398982,0.00204903,121400.0,121390.0,1.51164889]
[1755111399363,0.00204903,121400.0,121390.0,1.50671017]
[1755111400338,0.00204903,121400.0,121390.0,1.05193459]
[1755111401497,0.00204903,121400.0,121390.0,1.45445459]
[1755111402377,0.00204903,121400.0,121390.0,1.90923017]
[1755111402557,0.00204903,121400.0,121390.0,1.80663017]
[1755111403518,0.00204903,121400.0,121390.0,1.78918115]
[1755111403769,0.00204903,121400.0,121390.0,1.80663017]
[1755111404556,0.00204903,121400.0,121390.0,1.70403017]
[1755111406979,0.00204903,121400.0,121390.0,1.68658115]
[1755111407255,0.00204903,121400.0,121390.0,1.37943017]
[1755111407456,0.00204903,121400.0,121390.0,1.40230447]
[1755111407665,0.00204903,121400.0,121390.0,2.84828047]
[1755111407871,0.00204903,121400.0,121390.0,2.76787537]
[1755111408552,0.00204903,121400.0,121390.0,2.64059537]
[1755111408779,0.00104903,121400.0,121390.0,2.74287537]
[1755111408978,0.00204903,121400.0,121390.0,2.79487537]
[1755111409179,0.00104903,121400.0,121390.0,2.79487537]
[1755111410339,0.00104903,121400.0,121390.0,2.47534237]
[1755111410545,0.00104903,121400.0,121390.0,2.36106637]
[1755111410950,0.00104903,121400.0,121390.0,2.36206637]
[1755111411354,0.00104903,121400.0,121390.0,2.31178337]
[1755111411552,0.00104903,121400.0,121390.0,2.64556337]
[1755111412006,0.00104903,121400.0,121390.0,2.64047817]
[1755111414673,0.00104903,121400.0,121390.0,2.76277375]
[1755111414900,0.00104903,121400.0,121390.0,2.89496901]
[1755111415088,0.00104903,121400.0,121390.0,2.44019343]
[1755111415448,0.00104903,121400.0,121390.0,2.24291343]
[1755111415655,0.00104903,121400.0,121390.0,2.57241343]
[1755111417907,0.00104903,121400.0,121390.0,2.56745817]
[1755111418923,0.00104903,121400.0,121390.0,3.02223375]
[1755111419125,0.00104903,121400.0,121390.0,2.56745817]
[1755111419690,0.00104903,121400.0,121390.0,2.44021817]
[1755111419871,0.00104903,121400.0,121390.0,2.56745817]
[1755111420087,0.00104903,121400.0,121390.0,2.91668408]
[1755111420305,0.00104903,121400.0,121390.0,3.02708305]
[1755111420505,0.00104903,121400.0,121390.0,3.04723375]
[1755111420887,0.00104903,121400.0,121390.0,3.02223375]
[1755111421092,0.00104903,121400.0,121390.0,3.0718835]
[1755111421292,0.00104903,121400.0,121390.0,3.08395667]
[1755111421494,0.00104903,121400.0,121390.0,3.48635667]
[1755111421906,0.00104903,121400.0,121390.0,3.4781328]
[1755111422118,0.00104903,121400.0,121390.0,3.4561328]
[1755111422280,4.903e-05,121400.0,121390.0,3.4541328]
[1755111422492,0.00104903,121400.0,121390.0,3.3525728]
[1755111422693,0.00104903,121400.0,121390.0,3.3775728]
[1755111422905,0.00104903,121400.0,121390.0,3.3805728]
[1755111423722,0.00104903,121400.0,121390.0,3.1507728]
[1755111423919,0.00104903,121400.0,121390.0,3.0806928]
[1755111424165,0.06704771,121440.0,121430.0,0.04244902]
[1755111424362,0.06961815,121440.0,121430.0,0.58206785]
[1755111424572,0.00069044,121440.0,121430.0,1.60782843]
[1755111424785,0.00069044,121440.0,121430.0,2.06917929]
[1755111424995,0.00069044,121440.0,121430.0,1.96664129]
[1755111425147,0.00069044,121440.0,121430.0,2.09384129]
[1755111425368,0.00169044,121440.0,121430.0,2.09384129]
[1755111425561,0.00269044,121440.0,121430.0,2.09384129]
[1755111425809,0.00169044,121440.0,121430.0,2.08910043]
[1755111426205,0.00169044,121440.0,121430.0,2.43110043]
[1755111429164,0.00169044,121440.0,121430.0,2.43106043]
[1755111430473,0.00169044,121440.0,121430.0,2.43569385]
[1755111431407,0.00169044,121440.0,121430.0,2.83801385]
[1755111431601,0.00169044,121440.0,121430.0,2.73545385]
[1755111432228,0.00169044,121440.0,121430.0,1.82590269]
[1755111432444,0.00169044,121440.0,121430.0,2.73545385]
[1755111433726,0.00169044,121440.0,121430.0,2.63289385]
[1755111434052,0.00169044,121440.0,121430.0,2.76330943]
[1755111434252,0.00169044,121440.0,121430.0,2.89046943]
[1755111434654,0.00169044,121440.0,121430.0,2.30853385]
[1755111434901,0.00169044,121440.0,121430.0,2.43569385]
[1755111436314,0.00169044,121440.0,121430.0,2.30853385]
[1755111436519,0.00169044,121440.0,121430.0,2.43569385]
[1755111436853,0.00169044,121440.0,121430.0,2.89046943]
[1755111437378,0.00169044,121440.0,121430.0,2.76330943]
[1755111437488,0.00169044,121440.0,121430.0,2.90825852]
[1755111437731,0.00169044,121440.0,121430.0,2.89046943]
[1755111438122,0.00169044,121440.0,121430.0,2.89042943]
[1755111438361,0.00169044,121440.0,121430.0,2.88942943]
[1755111438520,0.00069044,121440.0,121430.0,2.88842943]
[1755111438718,0.00069044,121440.0,121430.0,2.89042943]
[1755111438921,0.0002,121450.0,121440.0,0.06744902]
[1755111439134,0.00034707,121450.0,121440.0,5.61298547]
[1755111439463,0.00034707,121450.0,121440.0,5.18297885]
[1755111439934,0.00034707,121450.0,121440.0,5.83515501]
[1755111440268,0.00034707,121450.0,121440.0,6.04803501]
[1755111440584,0.00034707,121450.0,121440.0,5.77245901]
[1755111440811,0.00134707,121450.0,121440.0,4.67928701]
[1755111440974,0.00234707,121450.0,121440.0,4.67928701]
[1755111441590,0.00234707,121450.0,121440.0,5.08152701]
[1755111441787,0.00234707,121450.0,121440.0,4.28223701]
[1755111443306,0.00234707,121450.0,121440.0,3.88435611]
[1755111444068,0.00134707,121450.0,121440.0,3.26593401]
[1755111444282,0.00034707,121450.0,121440.0,3.39305401]
[1755111445793,0.00242707,121450.0,121440.0,2.17101143]
[1755111446015,0.00242707,121450.0,121440.0,1.96697143]
[1755111446446,0.00242707,121450.0,121440.0,1.94197143]
[1755111446665,0.00539707,121450.0,121440.0,1.95123843]
[1755111446852,0.00539707,121450.0,121440.0,1.83774107]
[1755111446994,0.00539707,121450.0,121440.0,1.86274107]
[1755111447215,0.00539707,121450.0,121440.0,1.88019009]
[1755111447426,0.00242707,121450.0,121440.0,1.88015009]
[1755111447629,0.00242707,121450.0,121440.0,1.75307009]
[1755111447838,0.00242707,121450.0,121440.0,1.88015009]
[1755111449485,0.00242707,121450.0,121440.0,1.90488834]
[1755111450119,0.00242707,121450.0,121440.0,1.90817634]
[1755111451604,0.00242707,121450.0,121440.0,1.88361634]
[1755111451802,0.00242707,121450.0,121440.0,2.20785634]
[1755111452145,0.00242707,121450.0,121440.0,1.06870518]
[1755111452355,0.00242707,121450.0,121440.0,0.74113349]
[1755111452356,0.05467707,121450.0,121440.0,0.74113349]
[1755111452578,0.05467707,121450.0,121440.0,1.32298907]
[1755111453500,0.06067707,121450.0,121440.0,1.32298907]
[1755111454923,0.01154707,121450.0,121440.0,1.68043809]
[1755111460865,0.01154707,121450.0,121440.0,1.55335809]
[1755111461065,0.01154707,121450.0,121440.0,1.68043809]
[1755111461558,0.00842707,121450.0,121440.0,2.08267809]
[1755111462965,0.01154707,121450.0,121440.0,1.98015809]
[1755111464540,0.01154707,121450.0,121440.0,1.75055809]
[1755111464750,0.01154707,121450.0,121440.0,1.87763809]
[1755111465386,0.01154707,121450.0,121440.0,1.55335809]
[1755111465596,0.01154707,121450.0,121440.0,1.68043809]
[1755111466911,0.00842707,121450.0,121440.0,1.68043809]
[1755111467109,0.00842707,121450.0,121440.0,1.68251809]
[1755111468097,0.00842707,121450.0,121440.0,1.68043809]
[1755111469958,0.00842707,121450.0,121440.0,1.55335809]
[1755111470135,0.00842707,121450.0,121440.0,1.68251809]
[1755111470301,0.00842707,121450.0,121440.0,1.68545809]
[1755111471518,0.00842707,121450.0,121440.0,2.08769809]
[1755111472049,0.00842707,121450.0,121440.0,1.98517809]
[1755111472376,0.00634707,121450.0,121440.0,1.88265809]
[1755111472591,0.00634707,121450.0,121440.0,1.6574378]
[1755111472821,0.00634707,121450.0,121440.0,2.24221787]
[1755111473357,0.00634707,121450.0,121440.0,2.11513787]
[1755111473576,0.00634707,121450.0,121440.0,2.22626128]
[1755111473755,0.00234707,121450.0,121440.0,2.22626128]
[1755111473961,0.00234707,121450.0,121440.0,2.09587692]
[1755111474162,0.00234707,121450.0,121440.0,2.22295692]
[1755111474364,0.00134707,121450.0,121440.0,2.22295692]
[1755111474670,0.00334707,121450.0,121440.0,1.76818134]
[1755111475285,0.00234707,121450.0,121440.0,1.76818134]
[1755111475694,0.00334707,121450.0,121440.0,1.76818134]
[1755111476833,0.00334707,121450.0,121440.0,2.22295692]
[1755111477035,0.00334707,121450.0,121440.0,2.22291692]
[1755111480409,0.00334707,121450.0,121440.0,1.64110134]
[1755111480620,0.00384707,121450.0,121440.0,1.63608134]
[1755111480864,0.00682707,121450.0,121440.0,1.76312134]
[1755111481090,0.00682707,121450.0,121440.0,1.68039809]
[1755111481397,0.00682707,121450.0,121440.0,1.88543809]
[1755111481605,0.00682707,121450.0,121440.0,2.08263809]
[1755111482288,0.00682707,121450.0,121440.0,1.07056693]
[1755111482490,0.00682707,121450.0,121440.0,1.98011809]
[1755111482961,0.00682707,121450.0,121440.0,1.73310907]
[1755111483128,0.00682707,121450.0,121440.0,1.86014907]
[1755111485207,0.00384707,121450.0,121440.0,1.86014907]
[1755111485406,0.00384707,121450.0,121440.0,1.66294907]
[1755111487000,0.00384707,121450.0,121440.0,1.53590907]
[1755111487124,0.00384707,121450.0,121440.0,1.66294907]
[1755111490143,0.00384707,121450.0,121440.0,1.66290907]
[1755111490613,0.00384707,121450.0,121440.0,1.66502907]
[1755111490769,0.00384707,121450.0,121440.0,1.66813907]
[1755111491517,0.00384707,121450.0,121440.0,2.07037907]
[1755111492345,0.00384707,121450.0,121440.0,1.96785907]
[1755111493145,0.00384707,121450.0,121440.0,1.73833907]
[1755111493357,0.00384707,121450.0,121440.0,1.86533907]
[1755111493580,0.00384707,121450.0,121440.0,0.63158791]
[1755111493793,0.00684707,121450.0,121440.0,1.19590907]
[1755111493993,0.00684707,121450.0,121440.0,0.41335791]
[1755111494216,0.00684707,121450.0,121440.0,1.66290907]
[1755111495384,0.00684707,121450.0,121440.0,0.75335791]
[1755111495585,0.00684707,121450.0,121440.0,1.66290907]
[1755111496451,0.00384707,121450.0,121440.0,1.53590907]
[1755111496605,0.00384707,121450.0,121440.0,1.66290907]
[1755111501400,0.00384707,121450.0,121440.0,1.86802907]
[1755111501604,0.00384707,121450.0,121440.0,2.06522907]
[1755111502158,0.00384707,121450.0,121440.0,3.75979351]
[1755111502506,0.00384707,121450.0,121440.0,3.63279351]
[1755111502708,0.00684707,121450.0,121440.0,1.30776968]
[1755111502987,0.00684707,121450.0,121440.0,1.42268268]
[1755111503379,0.00484707,121450.0,121440.0,1.42268268]
[1755111503621,0.00484707,121450.0,121440.0,1.19312268]
[1755111503800,0.00584707,121450.0,121440.0,1.32008268]
[1755111504006,0.00384707,121450.0,121440.0,1.32008268]
[1755111504304,0.00784707,121450.0,121440.0,1.32008268]
[1755111504730,0.00784707,121450.0,121440.0,0.88321068]
[1755111504931,0.00784707,121450.0,121440.0,0.79477558]
[1755111505138,0.00784707,121450.0,121440.0,1.04665158]
[1755111505523,0.00784707,121450.0,121440.0,0.591876]
[1755111505728,0.00884707,121450.0,121440.0,1.04665158]
[1755111505947,0.00884707,121450.0,121440.0,0.92173558]
[1755111506308,0.00384707,121450.0,121440.0,1.07825158]
[1755111506481,0.00884707,121450.0,121440.0,1.07925158]
[1755111506804,0.09557032,121450.0,121440.0,1.07925158]
[1755111507209,0.09557032,121450.0,121440.0,0.95229158]
[1755111507333,0.09557032,121450.0,121440.0,0.92277558]
[1755111507758,0.09557032,121450.0,121440.0,0.79577558]
[1755111507990,0.09557032,121450.0,121440.0,0.92277558]
[1755111511158,0.09557032,121450.0,121440.0,0.468]
[1755111511315,0.09557032,121450.0,121440.0,0.92277558]
[1755111511521,0.09557032,121450.0,121440.0,1.32513558]
[1755111512713,0.09557032,121450.0,121440.0,0.99301558]
[1755111512919,0.09557032,121450.0,121440.0,1.12001558]
[1755111513412,0.09557032,121450.0,121440.0,0.79577558]
[1755111513598,0.09557032,121450.0,121440.0,0.92277558]
[1755111513770,0.09557032,121450.0,121440.0,0.79577558]
[1755111514193,0.09557032,121450.0,121440.0,0.92277558]
[1755111515018,0.09557032,121450.0,121440.0,0.79577558]
[1755111515159,0.09557032,121450.0,121440.0,0.92277558]
[1755111517906,0.09564032,121450.0,121440.0,0.341]
[1755111518090,0.09564032,121450.0,121440.0,0.79577558]
[1755111518285,0.09564032,121450.0,121440.0,0.92277558]
[1755111518539,0.09564032,121450.0,121440.0,0.468]
[1755111518755,0.09564032,121450.0,121440.0,0.46796]
[1755111518976,0.1054304,121450.0,121440.0,0.001]
[1755111519178,0.09564032,121450.0,121440.0,0.001]
[1755111519399,0.09770081,121450.0,121440.0,0.128]
[1755111519612,0.09770081,121450.0,121440.0,0.12796]
[1755111519822,0.15032081,121450.0,121440.0,0.341]
[1755111520034,0.20558845,121450.0,121440.0,0.46796]
[1755111520241,0.20352796,121450.0,121440.0,0.46796]
[1755111520670,0.19952796,121450.0,121440.0,0.46796]
[1755111521146,0.20552796,121450.0,121440.0,0.46796]
[1755111521556,0.20552796,121450.0,121440.0,0.76776]
[1755111521733,0.15026032,121450.0,121440.0,0.76776]
[1755111521993,0.14732081,121450.0,121440.0,0.76676]
[1755111522408,0.15132081,121450.0,121440.0,0.76776]
[1755111524642,0.09870081,121450.0,121440.0,0.76776]
[1755111524865,0.09357032,121450.0,121440.0,1.12217558]
[1755111525065,0.09357032,121450.0,121440.0,1.12531558]
[1755111525582,0.09664032,121450.0,121440.0,0.341]
[1755111526022,0.09664032,121450.0,121440.0,0.468]
[1755111526404,0.09664032,121450.0,121440.0,0.341]
[1755111526609,0.1065304,121450.0,121440.0,0.468]
[1755111526944,0.09664032,121450.0,121440.0,0.79577558]
[1755111527218,0.09664032,121450.0,121440.0,0.92277558]
[1755111527426,0.09664032,121450.0,121440.0,0.92273558]
[1755111527639,0.09357032,121450.0,121440.0,0.92273558]
[1755111528241,0.09357032,121450.0,121440.0,0.92803558]
[1755111529572,0.09357032,121450.0,121440.0,0.92489558]
[1755111530147,0.09357032,121450.0,121440.0,0.92803558]
[1755111531546,0.09307032,121450.0,121440.0,1.22787558]
[1755111532594,0.09307032,121450.0,121440.0,1.10091558]
[1755111532744,0.09307032,121450.0,121440.0,1.22787558]
[1755111535976,0.09307032,121450.0,121440.0,1.24301486]
[1755111536380,0.09307032,121450.0,121440.0,0.78823928]
[1755111536581,0.09307032,121450.0,121440.0,1.14045486]
[1755111537311,0.09307032,121450.0,121440.0,1.59523044]
[1755111537545,0.09307032,121450.0,121440.0,1.27099044]
[1755111537737,0.09307032,121450.0,121440.0,1.39795044]
[1755111538178,0.09307032,121450.0,121440.0,1.42262344]
[1755111540441,0.09307032,121450.0,121440.0,1.29566344]
[1755111540644,0.09307032,121450.0,121440.0,3.02531044]
[1755111541056,0.09307032,121450.0,121440.0,2.80428244]
[1755111541451,0.09307032,121450.0,121440.0,3.00940244]
[1755111541662,0.09307032,121450.0,121440.0,3.17680944]
[1755111542006,0.09307032,121450.0,121440.0,3.07424944]
[1755111542208,0.09307032,121450.0,121440.0,2.97168944]
[1755111543143,0.09307032,121450.0,121440.0,2.84472944]
[1755111543353,0.09307032,121450.0,121440.0,2.97168944]
[1755111543837,0.09307032,121450.0,121440.0,2.06413744]
[1755111545268,0.09307032,121450.0,121440.0,1.86685744]
[1755111546695,0.09307032,121450.0,121440.0,1.39964544]
[1755111547007,0.09307032,121450.0,121440.0,1.52656544]
[1755111551403,0.09307032,121450.0,121440.0,1.51142616]
[1755111551606,0.09307032,121450.0,121440.0,1.91382616]
[1755111552749,0.09307032,121450.0,121440.0,1.81126616]
[1755111553168,0.09307032,121450.0,121440.0,1.8260952]
[1755111554330,0.09307032,121450.0,121440.0,1.5966152]
[1755111554671,0.09307032,121450.0,121440.0,1.3993352]
[1755111554886,0.09307032,121450.0,121440.0,1.5262552]
[1755111556511,0.09307032,121450.0,121440.0,1.3993352]
[1755111556863,0.09307032,121450.0,121440.0,1.5262552]
[1755111560572,0.09307032,121450.0,121440.0,1.5262152]
[1755111561013,0.01034707,121450.0,121440.0,1.8562118]
[1755111561455,0.01034707,121450.0,121440.0,2.18611078]
[1755111561694,0.01034707,121450.0,121440.0,2.28083078]
[1755111562679,0.00634707,121450.0,121440.0,2.27983078]
[1755111563016,0.00734707,121450.0,121440.0,1.8260552]
[1755111563278,0.00134707,121450.0,121440.0,1.8260552]
[1755111563454,0.00434707,121450.0,121440.0,1.7234952]
[1755111563864,0.00434707,121450.0,121440.0,1.5262152]
[1755111564011,0.00134707,121450.0,121440.0,1.5262152]
[1755111564222,0.00434707,121450.0,121440.0,1.5262152]
[1755111566531,0.00434707,121450.0,121440.0,1.3993352]
[1755111566737,0.00434707,121450.0,121440.0,1.5262152]
[1755111568430,0.00434707,121450.0,121440.0,1.5261752]
[1755111571474,0.00434707,121450.0,121440.0,1.9285352]
[1755111573615,0.00434707,121450.0,121440.0,1.3993352]
[1755111574082,0.00434707,121450.0,121440.0,1.5261752]
[1755111574390,0.00434707,121450.0,121440.0,1.3993352]
[1755111574593,0.00434707,121450.0,121440.0,1.5261752]
[1755111575144,0.00434707,121450.0,121440.0,0.61662404]
[1755111575356,0.00434707,121450.0,121440.0,1.5208752]
[1755111575357,0.00644707,121450.0,121440.0,1.5208752]
[1755111576361,0.00644707,121450.0,121440.0,1.5229652]
[1755111576551,0.00644707,121450.0,121440.0,1.5261152]
[1755111576994,0.00434707,121450.0,121440.0,1.5261152]
[1755111577794,0.08917032,121450.0,121440.0,1.3940352]
[1755111578196,0.08917032,121450.0,121440.0,1.5208352]
[1755111578608,0.08917032,121450.0,121440.0,1.3940352]
[1755111578838,0.08917032,121450.0,121440.0,1.5208352]
[1755111579006,0.08917032,121450.0,121440.0,1.5260752]
[1755111580125,0.08917032,121450.0,121440.0,1.3992752]
[1755111580275,0.08917032,121450.0,121440.0,1.4168532]
[1755111580946,0.08917032,121450.0,121440.0,1.4227662]
[1755111581149,0.08917032,121450.0,121440.0,1.5495662]
[1755111581493,0.08917032,121450.0,121440.0,1.8546062]
[1755111583859,0.08917032,121450.0,121440.0,1.7278062]
[1755111584059,0.08917032,121450.0,121440.0,1.8546062]
[1755111585959,0.08917032,121450.0,121440.0,1.5548062]
[1755111586348,0.08917032,121450.0,121440.0,1.4189432]
[1755111586706,0.08917032,121450.0,121440.0,1.53234146]
[1755111586917,0.08917032,121450.0,121440.0,1.70311246]
[1755111587709,0.08917032,121450.0,121440.0,1.53234146]
[1755111588105,0.08917032,121450.0,121440.0,1.70311246]
[1755111588313,0.09214032,121450.0,121440.0,1.18782732]
[1755111588543,0.09214032,121450.0,121440.0,1.18926832]
[1755111589173,0.09114032,121450.0,121440.0,1.18826832]
[1755111589369,0.09214032,121450.0,121440.0,1.18926832]
[1755111589622,0.09614032,121450.0,121440.0,1.53025146]
[1755111590753,0.09614032,121450.0,121440.0,1.41674968]
[1755111590960,0.09614032,121450.0,121440.0,1.28994968]
[1755111591274,0.09317032,121450.0,121440.0,1.42198968]
[1755111591457,0.09317032,121450.0,121440.0,1.52454968]
[1755111591617,0.09317032,121450.0,121440.0,1.72178968]
[1755111592192,0.09317032,121450.0,121440.0,1.59498968]
[1755111592484,0.09317032,121450.0,121440.0,1.72178968]
[1755111593476,0.09317032,121450.0,121440.0,1.59498968]
[1755111593657,0.09317032,121450.0,121440.0,1.72178968]
[1755111595503,0.09317032,121450.0,121440.0,1.61922968]
[1755111596694,0.09317032,121450.0,121440.0,1.29518968]
[1755111597000,0.09317032,121450.0,121440.0,1.42194968]
[1755111598001,0.09317032,121450.0,121440.0,1.41670968]
[1755111599195,0.09317032,121450.0,121440.0,1.28994968]
[1755111599404,0.09317032,121450.0,121440.0,1.41670968]
[1755111599752,0.09317032,121450.0,121440.0,1.28994968]
[1755111599976,0.09317032,121450.0,121440.0,1.41871968]
[1755111600177,0.09317032,121450.0,121440.0,1.29491968]
[1755111600383,0.09317032,121450.0,121440.0,0.51223204]
[1755111600578,0.09317032,121450.0,121440.0,1.42167968]
[1755111601402,0.09622032,121450.0,121440.0,0.58295682]
[1755111601582,0.09622032,121450.0,121440.0,0.90699682]
[1755111601811,0.09622032,121450.0,121440.0,0.78023682]
[1755111602020,0.14313032,121450.0,121440.0,1.24699682]
[1755111602225,0.14519081,121450.0,121440.0,1.24699682]
[1755111602440,0.18763983,121450.0,121440.0,0.222953]
[1755111602653,0.18763983,121450.0,121440.0,0.001]
[1755111602654,0.68408714,121450.0,121440.0,0.001]
[1755111602871,0.68408714,121450.0,121430.0,0.004]
[1755111602872,0.05,121440.0,121430.0,0.004]
[1755111603076,1.18046811,121440.0,121430.0,0.00142971]
[1755111603293,1.36040762,121440.0,121430.0,0.00142971]
[1755111603507,1.44189205,121440.0,121430.0,0.12818971]
[1755111604099,1.44189205,121440.0,121390.0,0.003]
[1755111604100,0.06544902,121400.0,121390.0,0.003]
[1755111604301,0.14913227,121400.0,121390.0,0.45772382]
[1755111604510,0.12916227,121400.0,121390.0,0.79772382]
[1755111604725,0.08674374,121400.0,121390.0,0.79973382]
[1755111604937,0.09781811,121400.0,121390.0,0.79973382]
[1755111605171,0.08478374,121400.0,121390.0,1.38417764]
[1755111605417,0.08378374,121400.0,121390.0,0.80318426]
[1755111605616,0.08378374,121400.0,121390.0,1.25790808]